Cogmind - Beta 11 @@@ ROGUE MODE // 2022.04.01 @ 21:11:36 Player: John1001 Result: Destroyed by as-89459 with Assembled F-torch Performance ------------- Evolutions (0) 0 Regions Visited (3) 600 Robots Destroyed (25) 125 Value Destroyed (673) 673 Prototype IDs (0) 0 Alien Tech Used (0) 0 Bonus (46) 46 TOTAL SCORE: 1444 Bonus ------- High Alert Combat Kills 46 Cogmind --------- Core Integrity 0/250 Matter 29/300 Energy 250/250 System Corruption 6% Temperature Cool (20) Movement Treading (145) Location -10/Exiles Parts ------- > --- POWER (1) -------- Ion Engine > --- PROPULSION (2) --- Advanced Treads Aluminum Leg > --- UTILITY (2) ------ Small Storage Unit Improved Light Armor Plating > --- WEAPON (2) ------- Light Cannon > --- INVENTORY (8) ---- Light Nuclear Core Compact Wheel Flight Unit Small Storage Unit Advanced Visual Processing Unit Power Shielding Improved Trap Extractor (0/6) Heavy Battle Rifle Peak State ------------ > --- POWER ------------ Ion Engine > --- PROPULSION ------- Advanced Treads Aluminum Leg > --- UTILITY ---------- Small Storage Unit Improved Light Armor Plating > --- WEAPON ----------- Light Cannon Grenade Launcher > --- INVENTORY -------- Light Nuclear Core Compact Wheel Flight Unit Advanced Visual Processing Unit Power Shielding Improved Trap Extractor Heavy Battle Rifle [Rating: 12] Favorites ----------- Power Light Ion Engine Engine Light Ion Engine Propulsion Aluminum Leg Treads Advanced Treads Leg Aluminum Leg Hover Unit Combat Airjet Utility Small Storage Unit Storage Small Storage Unit Processor Signal Interpreter Protection Improved Light Armor Plating Weapon Grenade Launcher Energy Gun EM Pulse Gun Ballistic Gun Assault Rifle Ballistic Cannon Light Cannon Launcher Grenade Launcher Build | -11 -10 -10 -10 ------- Run | Scr Mat Min Exi Slots Evolved . | . . . . Power . | . . . . Propulsion . | . . . . Utility . | . . . . Weapon . | . . . . Parts Attached 25 | 6 6 12 1 Power 4 | 1 . 3 . Engine 4 | 1 . 3 . Core . | . . . . Reactor . | . . . . Propulsion 7 | 2 2 3 . Treads 1 | . . 1 . Leg 5 | 2 2 1 . Wheel . | . . . . Hover 1 | . . 1 . Flight . | . . . . Utility 5 | 1 2 1 1 Device . | . . . . Storage 2 | 1 . . 1 Processor 1 | . 1 . . Hackware . | . . . . Protection 2 | . 1 1 . Artifact . | . . . . Weapon 9 | 2 2 5 . Energy Gun 1 | 1 . . . Energy Cannon . | . . . . Ballistic Gun 1 | 1 . . . Ballistic Cannon 3 | . . 3 . Launcher 4 | . 2 2 . Special Weapon . | . . . . Impact Weapon . | . . . . Slashing Weapon . | . . . . Piercing Weapon . | . . . . Special Melee Weapon . | . . . . Unidentified Prototypes . | . . . . Parts Lost 7 | . 2 5 . Power . | . . . . Propulsion 3 | . 1 2 . Utility 1 | . . 1 . Weapon 3 | . 1 2 . Highest Loss Streak 4 | . 1 4 . To Critical Strikes . | . . . . Average Slot Usage (%) 95 | . 98 93 98 Engine 14 | . 14 14 14 Treads 4 | . . 4 14 Leg 20 | . 27 20 14 Hover 1 | . . 1 . Storage 14 | . 14 14 14 Processor 5 | . 8 6 . Protection 6 | . 4 4 14 Energy Gun 1 | . 5 . . Ballistic Gun 1 | . 5 . . Ballistic Cannon 5 | . . 5 14 Launcher 18 | . 16 19 12 Naked Turns . | . . . . Heaviest Build 19 | 12 14 19 19 Greatest Support 22 | 20 20 22 22 Greatest Overweight (x) 4 | 3 1 4 . Average Overweight (x) . | . . . . Largest Inventory Capacity 8 | 8 8 8 8 Average Capacity 7 | 7 8 8 8 Most Carried 8 | 6 8 8 8 Average Carried 7 | 4 7 7 7 Final Capacity 8 | 8 8 8 8 Final Carried 8 | 6 8 7 8 Class Distribution -------------------- 100% | Mutant Dominant Class ---------------- Mutant | -10/Materials Mutant | -10/Mines Mutant | -10/Exiles Resources | -11 -10 -10 -10 ----------- Run | Scr Mat Min Exi Matter Collected 584 | 217 199 168 . Remotely . | . . . . Salvage Created 507 | . 416 91 . Parts 38 | . 30 8 . Haulers Intercepted . | . . . . Recyclers Shooed 2 | . 1 1 . Parts Field Recycled . | . . . . Retrieved Matter . | . . . . Parts Self-Destructed . | . . . . Prevented . | . . . . Kills | -11 -10 -10 -10 ------- Run | Scr Mat Min Exi Combat Hostiles Destroyed 30 | . 11 19 . Guns 4 | . 4 . . Cannons 1 | . . 1 . AOE 25 | . 7 18 . Classes Destroyed 8 | . 6 2 . Worker 1 | . 1 . . Builder 2 | . 2 . . Mechanic 1 | . 1 . . Operator 1 | . 1 . . Watcher 2 | . 2 . . Swarmer 5 | . . 5 . Grunt 13 | . 11 2 . Assembled 12 | . . 12 . Best Kill Streak 14 | . 6 14 . Combat Bots Only 14 | . 5 14 . Max Kills in Single Turn 5 | . 3 5 . Gunslinging . | . . . . Exploded 5 | . 2 5 . Melee . | . . . . Uniques/NPCs Destroyed . | . . . . Combat | -11 -10 -10 -10 -------- Run | Scr Mat Min Exi Damage Taken 1123 | . 363 447 313 Core 260 | . 99 72 89 Absorbed by Shields . | . . . . Regen/Repaired (Parts) 48 | . 48 . . Core Remaining (%) 100 | 100 . . . Volleys Fired 40 | . 25 15 . Largest 2 | . 2 2 . Hottest 70 | . 70 60 . Shots Fired 73 | . 49 23 1 Gun 29 | . 29 . . Cannon 4 | . . 4 . Launcher 40 | . 20 19 1 Special . | . . . . Kinetic 17 | . 13 4 . Thermal . | . . . . Explosive 40 | . 20 19 1 Electromagnetic 16 | . 16 . . Robot Hit Streak 6 | . 6 3 . Robot Miss Streak 7 | . 7 2 . Penetration Max . | . . . . Secondary Targets . | . . . . Shots Hit Robots 32 | . 24 8 . Core Hits 65 | . 29 36 . Critical Kills . | . . . . Critical Parts Destroyed . | . . . . Critical Strikes . | . . . . Melee Attacks . | . . . . Impact . | . . . . Slashing . | . . . . Piercing . | . . . . Sneak Attacks . | . . . . Combat Hostiles . | . . . . Follow-up Attacks . | . . . . Damage Inflicted 2597 | . 1345 1252 . Guns 228 | . 228 . . Cannons 52 | . . 52 . Explosions 2251 | . 1093 1158 . Melee . | . . . . Ramming 66 | . 24 42 . Kinetic 169 | . 117 52 . Thermal 202 | . 202 . . Explosive 2049 | . 891 1158 . Electromagnetic 111 | . 111 . . Impact . | . . . . Slashing . | . . . . Piercing . | . . . . Highest Corruption 6 | . . 6 6 Average Corruption 5 | . . 5 6 Corruption Purged . | . . . . Corruption Blocked . | . . . . Effects 22 | . . 18 4 Message Errors 6 | . . 4 2 Matter Fused 4 | . . 4 . Heat Flow Errors 4 | . . 4 . Energy Discharges 2 | . . 1 1 Parts Rejected 1 | . . 1 . Data Loss (minor) 2 | . . 2 . Misfires 2 | . . 1 1 Alerts 1 | . . 1 . Overload Shots . | . . . . Overflow Damage 150 | . 123 27 . Projectiles . | . . . . Explosions 150 | . 123 27 . Melee . | . . . . Knockbacks 2 | . . 2 . Impact . | . . . . Kinetic 2 | . . 2 . Secondary . | . . . . Self-Inflicted Damage 348 | . 145 157 46 Shots 12 | . 4 7 1 Rammed 4 | . . 4 . Targets Rammed 17 | . 4 13 . Kicked 13 | . 4 9 . Crushed . | . . . . Highest Temperature 240 | . 48 240 . Average Temperature 53 | . 22 90 . Received Heat Transfer 179 | . 126 33 20 Siege Activations . | . . . . Robots Corrupted . | . . . . Combat Hostiles . | . . . . Parts Fried . | . . . . Impact Corruptions . | . . . . Robots Melted . | . . . . Combat Hostiles . | . . . . Parts Melted . | . . . . Heat Transferred 150 | . 150 . . Parts Sabotaged . | . . . . Parts Stolen . | . . . . Parts Stripped . | . . . . Power Chain Reactions . | . . . . Missiles Intercepted . | . . . . Alert | -11 -10 -10 -10 ------- Run | Scr Mat Min Exi Peak Influence 635 | . 635 459 . Initial 192 | . . 192 . Average 294 | . 300 304 . Maximum Alert Level 2 | . 2 2 . Low Security (%) 20 | 100 41 8 . Level 1 62 | . 19 82 . Level 2 17 | . 39 9 . Level 3 . | . . . . Level 4 . | . . . . Level 5 . | . . . . High Security . | . . . . Max Security . | . . . . Squads Dispatched 3 | . 3 . . Investigation 2 | . 2 . . Extermination . | . . . . Reinforcement 1 | . 1 . . Assault . | . . . . Garrison . | . . . . Intercept . | . . . . Searches Triggered . | . . . . Construction Impeded . | . . . . Haulers Reinforced . | . . . . Active Scanning Responses . | . . . . Cargo Convoy Interrupts . | . . . . Stealth | -11 -10 -10 -10 --------- Run | Scr Mat Min Exi Distress Signals 2 | . 1 1 . Communications Jammed . | . . . . Distress Signals . | . . . . Times Spotted 50 | . 18 25 7 Peak Tracking Total 17 | . 5 17 13 Tactical Retreats 1 | . . . 1 Traps | -11 -10 -10 -10 ------- Run | Scr Mat Min Exi Traps Triggered 2 | . 1 1 . Indirectly . | . . . . Trap Hack Attempts . | . . . . Triggered . | . . . . Disarmed . | . . . . Reprogrammed . | . . . . Reused . | . . . . Traps Extracted . | . . . . Installed . | . . . . Triggered . | . . . . Machines | -11 -10 -10 -10 ---------- Run | Scr Mat Min Exi Machines Disabled 11 | . 6 1 4 Max in Single Turn 4 | . 2 1 4 Machines Sabotaged . | . . . . Garrisons Compromised . | . . . . Overloaded Fab Kills . | . . . . Hacking | -11 -10 -10 -10 --------- Run | Scr Mat Min Exi Machines Accessed 7 | . 5 1 1 Terminals 4 | . 4 . . Fabricators . | . . . . Repair Stations 1 | . 1 . . Recycling Units . | . . . . Scanalyzers . | . . . . Garrison Access . | . . . . Total Hacks 36 | . 12 1 23 Successful 28 | . 4 1 23 Failed 8 | . 8 . . Catastrophic 2 | . 2 . . Database Lockouts . | . . . . Manual 3 | . 3 . . Terminals 9 | . 9 . . Fabricators . | . . . . Repair Stations 3 | . 3 . . Recycling Units . | . . . . Scanalyzers . | . . . . Garrison Access . | . . . . Terminal Hacks 26 | . 2 1 23 Record 23 | . . . 23 Open Door 1 | . . 1 . Locate Traps 1 | . 1 . . Registered Components 1 | . 1 . . Fabricator Hacks . | . . . . Repair Station Hacks 2 | . 2 . . Scan Component 1 | . 1 . . Repair 1 | . 1 . . Recycling Unit Hacks . | . . . . Scanalyzer . | . . . . Garrison Access Hacks . | . . . . Unauthorized Hacks . | . . . . Terminals . | . . . . Fabricators . | . . . . Repair Stations . | . . . . Recycling Units . | . . . . Scanalyzers . | . . . . Garrison Access . | . . . . Data Cores Recovered . | . . . . Used . | . . . . Hacking Detections 4 | . 4 . . Full Trace Events 1 | . 1 . . Feedback Events . | . . . . Feedback Blocked . | . . . . Robot Schematics Acquired . | . . . . Robots Built . | . . . . Authchips . | . . . . Time . | . . . . Total Robot Build Rating . | . . . . Part Schematics Acquired . | . . . . Parts Built . | . . . . Authchips . | . . . . Time . | . . . . Total Part Build Rating . | . . . . Parts Repaired 1 | . 1 . . Time 26 | . 26 . . Parts Recycled . | . . . . Recycled Matter . | . . . . Retrieved Matter . | . . . . Retrieved Components . | . . . . Parts Scanalyzed . | . . . . Part Schematics Acquired . | . . . . Parts Damaged . | . . . . Bothacking | -11 -10 -10 -10 ------------ Run | Scr Mat Min Exi Used RIF Installer . | . . . . Robots Hacked . | . . . . Non-combat . | . . . . Combat . | . . . . Robot Hacks Applied . | . . . . Relay Couplers Released . | . . . . Fabnet Peak Effective % . | . . . . Robots Rewired . | . . . . Allies Hacked . | . . . . Hacks Repelled . | . . . . Allies | -11 -10 -10 -10 -------- Run | Scr Mat Min Exi Total Allies . | . . . . Largest Group . | . . . . Highest-Rated Group . | . . . . Highest-Rated Ally . | . . . . Total Orders . | . . . . Ally Attacks . | . . . . Total Damage . | . . . . Kills . | . . . . Allies Corrupted . | . . . . Allies Melted . | . . . . Intel | -11 -10 -10 -10 ------- Run | Scr Mat Min Exi Robot Analysis Total . | . . . . Derelict Logs Recovered 1 | . . 1 . Drone Launches . | . . . . Drone Recoveries . | . . . . Exploration | -11 -10 -10 -10 ------------- Run | Scr Mat Min Exi Turns Passed 1915 | 50 452 1150 263 Spaces Moved 1331 | 31 273 847 180 Core 16 | 12 . 4 . Treads 452 | . . 272 180 Legs 707 | 19 273 415 . Wheels . | . . . . Hover 156 | . . 156 . Flight . | . . . . Fastest Speed 50 | 50 120 90 145 Average Speed 127 | 111 120 126 145 Slowest Speed 250 | 200 190 250 145 Overloaded Moves . | . . . . Propulsion Burnouts . | . . . . Robots Hopped . | . . . . Cave-ins Triggered . | . . . . Exploration Rate (%) 52 | 3 58 99 51 Regions Visited 3 Branch Regions 2 Pre-discovered Areas 2 | . . 1 1 Known Exits Taken 1 | . 1 . . Unknown Exits Taken 2 | 1 . 1 . Scrap Searched 2 | . . 2 . Spaces Dug . | . . . . Terrain Destroyed 231 | . 88 136 7 Melee . | . . . . Projectile . | . . . . AOE 231 | . 88 136 7 Terrain Rammed . | . . . . Walls Destroyed . | . . . . Machines Disabled . | . . . . Actions | -11 -10 -10 -10 --------- Run | Scr Mat Min Exi Total 1470 | 43 345 900 182 Wait 29 | 1 26 2 . Move 1329 | 30 273 846 180 Hop . | . . . . Pick Up 16 | 6 6 4 . Fast Attach 15 | 6 5 4 . Attach 3 | . . 3 . Detach 2 | . 1 1 . Swap 7 | . 1 5 1 Drop 13 | . 5 7 1 Fire 40 | . 25 15 . Melee . | . . . . Ram . | . . . . Kick 12 | . 3 9 . Crush 4 | . . 4 . Escape Stasis . | . . . . Rewire . | . . . . Trap . | . . . . Miscellaneous . | . . . . Route ------- -11/Scrapyard -10/Materials (discovered 3 exits: *Mat x2 / *Min) -10/Mines (discovered 3 exits: *Mat x2 / *Exi) -10/Exiles History --------- Turn | Location | Event 30 | -11/Scrapyard | Discovered new exit (range 15) 51 | -11/Scrapyard | Entered Materials 146 | -10/Materials | Discovered new exit (range 16) 232 | -10/Materials | Discovered new exit (range 15) 266 | -10/Materials | Identified exit to Materials 310 | -10/Materials | Build established: Mutant 339 | -10/Materials | Discovered exit to Materials (range 13) 446 | -10/Materials | Repaired Aluminum Leg 465 | -10/Materials | Identified exit to Mines 503 | -10/Materials | Entered Mines 546 | -10/Mines | Met a Derelict bent on vengeance 549 | -10/Mines | Learned location of Storage (-8) 611 | -10/Mines | Discovered exit to Materials (range 9) 924 | -10/Mines | A weapon hastily lodged in a ceiling crevice suddenly fell to the ground 982 | -10/Mines | Assembled infested the area 987 | -10/Mines | Assisted by a Guerilla fighting off Assembled 996 | -10/Mines | Core integrity fell below 50% 1031 | -10/Mines | Discovered exit to Materials (range 15) 1035 | -10/Mines | Destroyed 14 combat bots 1041 | -10/Mines | Lost 4 parts (1n1u2w) 1143 | -10/Mines | Found a hidden stash of uninstalled traps 1224 | -10/Mines | Met a Derelict who couldn't figure out how to use a Trap Extractor 1646 | -10/Mines | Deemed a non-threat by the Exiles lab entrance 1648 | -10/Mines | Discovered new exit (range 5) 1653 | -10/Mines | Entered Exiles 1687 | -10/Exiles | Met 8R-AWN 1713 | -10/Exiles | Met EX-HEX 1767 | -10/Exiles | Met EX-DEC 1878 | -10/Exiles | Learned location of Zion (-6) 1890 | -10/Exiles | Attacked by the Exiles 1898 | -10/Exiles | Core integrity fell below 20% 1916 | -10/Exiles | Destroyed by as-89459 with Assembled F-torch Last Messages --------------- someone not pay them in full, or are we getting on their bad side for some reason? We don't want to be on their bad side. >>Record "MSG004742-01" I don't think we can trust Data Miner anymore. For a while now the data we've been getting from that quarter seems anything but impartial. >>Record "MSG004795-01" Could someone repair the Mines activity scanner? It seems to fail sometimes, and when it does we can't send 8R-AWN out on exploratory runs. >>Record "MSG004795-02" I just repaired it not long ago, I think someone on the outside is tampering with our system. --AM-PHS >>Record "MSG004964-01" Who left my Assembled plushie in the Analyzer again?! I'm not erasing this message until I get an answer. --BIN 01889_ System corrupted: FCS attempts to trigger Grenade Launcher. 01889_ System corrupted: Grenade Launcher misfires. 01889_ Components damaged. 01890_ EXILES: Hostile robot within lab perimeter. Defensive protocols time, folks! 01890_ Dropped Grenade Launcher. 01902_ EX-BIN: "I just want to science!" Map ----- +----------------------------------------------------+ | ?????????????????????????????????????????????????? | | ?????????????????????????????????????????????????? | | ?????????????????????????????????????????????????? | | ?????????????????????????????????????????????????? | | ?????????????????????????????????????????????????? | | ?????????????????????????????????????????????????? | | ?????????????????????????????????????????????????? | | ?????????????????????????????????????????????????? | | ?????????????????????????????????????????????????? | | ?????????????????????????????????????????????????? | | ?????????????????????????????????????????????????? | | ?????????????????????????????????????????????????? | | ?????????????????????????????????????????????????? | | ?????????????????????????????????????????????????? | | ???????????????????#?????????????????????????????? | | ??????????????????## ???????????????########?????? | | ????????????? #???#" ???????????????# """#?????? | | ????????????? ?##" ??????????????#" "##????? | | ???????????? #"" ??????????????# #????? | | ???????????? z ?????????????# #????? | | ???????????? ?????????????# ##????? | | ?????????????# "????????????# ] #????? | | ?????????????? ###?????????# #????? | | ???????????????? ##????????## ##????? | | ???????????????????#"" ######???###% ###?##### | | ????????????????????#" @a """#####X# #"###"""" | | ????????????????????#" aa """""" " | | ????????????????????#"# aaa % "" """ | | ??????????????????????## " " | | ???????????????????????### | | ?????????????????????????### | | ???????????????????????????## | | ????????????????????????????## | | ?????????????????????????????##" | | ??????????????????????????????#"""c | | ??????????????????????????????#" # | | ??????????????????????????????"" ""## | | ?????????????????????????????#""" """##? | | ??????????????????????????????"" """##?? | | ??????????????????????????????"" ""#??? | | ??????????????????????????????" ##### | | ??????????????????????????????"" ## | | ??????????????????????????????" | | ???????????????????????????????" | | ???????????????????????????????""" | | ??????????????????????????????# | | ???????????????????????????????" | | ???????????????????????????????"""" | | ???????????????????????????????"" "" | | ???????????????????????????????" """"# | +----------------------------------------------------+ Best States ------------- Heat Dissipation 25 Energy Generation 10 Energy Capacity 250 Matter Stores 300 Matter Capacity 300 Sight Range 16 Terrain Scan Density 10 Armor Coverage 150 Power Shielding 33 Evasion (%) 55 Recoil Reduction 1 Item Schematics ----------------- None Robot Schematics ------------------ None Fabricated ------------ Nothing Alien Tech Used ----------------- None Achievements -------------- None Challenges ------------ None Game ------ Seed BurstGhostModule Manual? 0 Play Time 00:24:49 Cumulative 55.3 hours Start 2022.04.01 @ 20:46:48 End 2022.04.01 @ 21:11:36 Sessions 1 Manual Loads 0 Difficulty Rogue Special Mode None Game No. 23 Rogue 20 Adventurer 0 Explorer 3 Win Type - Total 0 Types 0/0/0/0/0/0/0/0/0 Lore% 47 Gallery% 39 Achievement% 38 Wizard Run 0 Options --------- ASCII 0 Keyboard 1 Movement Numpad Keybinds 0 Fullscreen 2 Font 20/Terminus Map View 98x62 Tactical HUD 1 Map Filters NONE Filters NONE Steam 1 RUN: f781607b-b128-4216-8dec-a933f432ef8d